Cogmind - Beta 14 @@@ ROGUE MODE // 2024.11.06 @ 18:35:38 Player: Yvonne Result: Destroyed by Y-45 Defender with Beam Rifle Performance ------------- Evolutions (1) 500 Regions Visited (2) 400 Robots Destroyed (22) 110 Value Destroyed (518) 518 Prototype IDs (0) 0 Alien Tech Used (0) 0 Bonus (0) 0 TOTAL SCORE: 1528 Bonus ------- None Cogmind --------- Core Integrity 0/400 Matter 298/300 Energy 98/100 System Corruption 1% Temperature Cool (9) Movement Core (250) Ox4 Location -9/Materials Parts ------- > --- POWER (1) -------- (None) > --- PROPULSION (3) --- (None) > --- UTILITY (3) ------ Medium Storage Unit Tractor Beam > --- WEAPON (2) ------- Light Assault Rifle Light Assault Rifle > --- INVENTORY (10) --- Ion Engine Ion Engine EM Pulse Gun Small Laser Assault Rifle Peak State ------------ > --- POWER ------------ Light Nuclear Core > --- PROPULSION ------- Light Treads Light Treads > --- UTILITY ---------- Medium Storage Unit Structural Scanner Field Recycling Unit > --- WEAPON ----------- Light Assault Rifle Mining Claw > --- INVENTORY -------- Ion Engine Ion Engine Light Ion Engine Tractor Beam EM Pulse Gun Small Laser Assault Rifle Light Assault Rifle Light Assault Rifle Welding Torch [Rating: 12] Favorites ----------- Power Ion Engine Engine Ion Engine Power Core Light Nuclear Core Propulsion Light Treads Treads Light Treads Utility Medium Storage Unit Device Structural Scanner Storage Medium Storage Unit Weapon Assault Rifle Ballistic Gun Assault Rifle Special Weapon Welding Torch Slashing Weapon Mining Claw Build | -11 -10 -9 ------- Run | Yrd Mat Mat Slots Evolved 2 | . . 2 Power . | . . . Propulsion 1 | . . 1 Utility 1 | . . 1 Weapon . | . . . Parts Attached 21 | 6 5 10 Power 4 | 1 1 2 Engine 3 | 1 1 1 Core 1 | . . 1 Reactor . | . . . Propulsion 4 | 2 . 2 Treads 4 | 2 . 2 Leg . | . . . Wheel . | . . . Hover . | . . . Flight . | . . . Utility 5 | 1 2 2 Device 3 | . 1 2 Storage 2 | 1 1 . Processor . | . . . Hackware . | . . . Protection . | . . . Artifact . | . . . Weapon 8 | 2 2 4 Energy Gun . | . . . Energy Cannon . | . . . Ballistic Gun 6 | 2 2 2 Ballistic Cannon . | . . . Launcher . | . . . Special Weapon 1 | . . 1 Impact Weapon . | . . . Slashing Weapon 1 | . . 1 Piercing Weapon . | . . . Special Melee Weapon . | . . . Unidentified Prototypes . | . . . Parts Lost 9 | . . 9 Power 2 | . . 2 Propulsion 2 | . . 2 Utility 2 | . . 2 Weapon 3 | . . 3 Highest Loss Streak 5 | . . 5 To Critical Strikes . | . . . Average Slot Usage (%) 86 | . 99 72 Engine 10 | . 14 6 Core 1 | . . 3 Treads 21 | . 28 14 Device 15 | . 13 17 Storage 12 | . 14 11 Ballistic Gun 20 | . 28 13 Slashing Weapon 3 | . . 6 Peak Build Rating 12 | 6 8 12 Average Rating 7 | 4 7 8 On Entrance 4 | . 6 8 Naked Turns . | . . . Heaviest Build 27 | 14 24 27 Greatest Support 40 | 40 40 40 Greatest Overweight (x) 8 | . . 8 Average Overweight (x) . | . . . Largest Inventory Capacity 10 | 8 10 10 Average Capacity 9 | 7 9 10 Most Carried 10 | 2 10 10 Average Carried 6 | 1 4 9 Final Capacity 10 | 8 10 10 Final Carried 10 | 2 10 5 Class Distribution -------------------- 100% | Mutant Dominant Class ---------------- Mutant | -10/Materials Mutant | -9/Materials Resources | -11 -10 -9 ----------- Run | Yrd Mat Mat Matter Collected 609 | 222 237 150 Remotely 64 | . . 64 Salvage Created 698 | . 310 388 Parts 45 | . 21 24 Haulers Intercepted . | . . . Recyclers Shooed 2 | . 2 . Parts Field Recycled 1 | . . 1 Retrieved Matter 6 | . . 6 Parts Self-Destructed . | . . . Prevented . | . . . Kills | -11 -10 -9 ------- Run | Yrd Mat Mat Combat Hostiles Destroyed 19 | . 8 11 Melee 7 | . . 7 Guns 12 | . 8 4 Classes Destroyed 5 | . 4 1 Recycler 1 | . 1 . Watcher 2 | . 2 . Swarmer 9 | . 5 4 Grunt 9 | . 3 6 Sentry 1 | . . 1 Best Kill Streak 4 | . 3 4 Combat Bots Only 4 | . 3 4 Max Kills in Single Turn 1 | . 1 1 Gunslinging . | . . . Exploded . | . . . Melee 1 | . . 1 Uniques/NPCs Destroyed . | . . . Combat | -11 -10 -9 -------- Run | Yrd Mat Mat Hostile Shots Fired 234 | . 64 170 Missed 67 | . 17 50 Damage Taken 1798 | . 432 1366 Core 514 | . 106 408 Absorbed by Shields . | . . . Regen/Repaired (Parts) 109 | . . 109 Core Remaining (%) 78 | 100 57 . Volleys Fired 73 | . 32 41 Largest 2 | . 2 2 Hottest 40 | . 40 40 Shots Fired 113 | . 64 49 Gun 113 | . 64 49 Cannon . | . . . Launcher . | . . . Special . | . . . Kinetic 113 | . 64 49 Thermal . | . . . Explosive . | . . . Electromagnetic . | . . . Robot Hit Streak 11 | . 4 11 Robot Miss Streak 6 | . 5 6 Penetration Max . | . . . Secondary Targets 1 | . . 1 Max Gunslinging Chain 1 | . . 1 Shots Hit Robots 74 | . 29 45 Core Hits 35 | . 16 19 Critical Kills . | . . . Critical Parts Destroyed . | . . . Critical Strikes . | . . . Melee Attacks 26 | . . 26 Impact . | . . . Slashing 26 | . . 26 Piercing . | . . . Sneak Attacks . | . . . Combat Hostiles . | . . . Follow-up Attacks . | . . . Damage Inflicted 1004 | . 396 608 Guns 609 | . 383 226 Cannons . | . . . Explosions . | . . . Melee 382 | . . 382 Ramming 13 | . 13 . Kinetic 609 | . 383 226 Thermal . | . . . Explosive . | . . . Electromagnetic . | . . . Impact . | . . . Slashing 382 | . . 382 Piercing . | . . . Highest Corruption 1 | . . 1 Average Corruption 1 | . . 1 Corruption Purged . | . . . Corruption Blocked . | . . . Overload Shots . | . . . Overflow Damage . | . . . Projectiles . | . . . Explosions . | . . . Melee . | . . . Knockbacks . | . . . Impact . | . . . Kinetic . | . . . Secondary . | . . . Self-Inflicted Damage . | . . . Shots . | . . . Rammed 5 | . 3 2 Targets Rammed 5 | . 3 2 Kicked . | . . . Crushed . | . . . Highest Temperature 10 | . 8 10 Average Temperature 4 | . 3 5 Received Heat Transfer 477 | . 72 405 Siege Activations . | . . . Robots Corrupted . | . . . Combat Hostiles . | . . . Parts Fried . | . . . Impact Corruptions . | . . . Robots Melted . | . . . Combat Hostiles . | . . . Parts Melted . | . . . Heat Transferred . | . . . Parts Sabotaged . | . . . Parts Stolen . | . . . Parts Stripped . | . . . Power Chain Reactions . | . . . Alert | -11 -10 -9 ------- Run | Yrd Mat Mat Peak Influence 219 | . 215 219 Initial 27 | . . 27 Average 88 | . 97 92 Maximum Alert Level 1 | . 1 1 Low Security (%) 95 | 100 99 89 Level 1 4 | . . 10 Level 2 . | . . . Level 3 . | . . . Level 4 . | . . . Level 5 . | . . . High Security . | . . . Max Security . | . . . Squads Dispatched 2 | . 1 1 Investigation . | . . . Extermination . | . . . Reinforcement 2 | . 1 1 Assault . | . . . Garrison . | . . . Intercept . | . . . Searches Triggered . | . . . Construction Impeded . | . . . Haulers Reinforced . | . . . Active Scanning Responses . | . . . Cargo Convoy Interrupts . | . . . Stealth | -11 -10 -9 --------- Run | Yrd Mat Mat Distress Signals 2 | . 1 1 Communications Jammed . | . . . Distress Signals . | . . . Times Spotted 28 | . 14 14 Peak Tracking Total 5 | . 4 5 Tactical Retreats 1 | . 1 . Traps | -11 -10 -9 ------- Run | Yrd Mat Mat Traps Triggered . | . . . Indirectly . | . . . Trap Hack Attempts . | . . . Triggered . | . . . Disarmed . | . . . Reprogrammed . | . . . Reused . | . . . Traps Extracted . | . . . Installed . | . . . Triggered . | . . . Machines | -11 -10 -9 ---------- Run | Yrd Mat Mat Machines Disabled . | . . . Max in Single Turn . | . . . Machines Repaired . | . . . Machines Dismantled . | . . . Machines Sabotaged . | . . . Overloaded Fab Kills . | . . . Hacking | -11 -10 -9 --------- Run | Yrd Mat Mat Machines Accessed 2 | . . 2 Terminals 1 | . . 1 Fabricators . | . . . Repair Stations 1 | . . 1 Recycling Units . | . . . Scanalyzers . | . . . Garrison Access . | . . . Total Hacks 6 | . . 6 Successful 5 | . . 5 Failed 1 | . . 1 Catastrophic . | . . . Database Lockouts . | . . . Manual . | . . . Terminals 1 | . . 1 Fabricators . | . . . Repair Stations 5 | . . 5 Recycling Units . | . . . Scanalyzers . | . . . Garrison Access . | . . . Terminal Hacks 1 | . . 1 Alert Level 1 | . . 1 Fabricator Hacks . | . . . Repair Station Hacks 4 | . . 4 Scan Component 2 | . . 2 Repair 2 | . . 2 Recycling Unit Hacks . | . . . Scanalyzer . | . . . Garrison Access Hacks . | . . . Unauthorized Hacks . | . . . Terminals . | . . . Fabricators . | . . . Repair Stations . | . . . Recycling Units . | . . . Scanalyzers . | . . . Garrison Access . | . . . Data Cores Recovered . | . . . Used . | . . . Hacking Detections . | . . . Full Trace Events . | . . . Feedback Events . | . . . Feedback Blocked . | . . . Robot Schematics Acquired . | . . . Robots Built . | . . . Authchips . | . . . Time . | . . . Total Robot Build Rating . | . . . Part Schematics Acquired . | . . . Parts Built . | . . . Authchips . | . . . Time . | . . . Total Part Build Rating . | . . . Parts Repaired 2 | . . 2 Time 52 | . . 52 Parts Recycled . | . . . Recycled Matter . | . . . Retrieved Matter . | . . . Retrieved Components . | . . . Parts Scanalyzed . | . . . Part Schematics Acquired . | . . . Parts Damaged . | . . . Bothacking | -11 -10 -9 ------------ Run | Yrd Mat Mat Used RIF Installer . | . . . Robots Hacked . | . . . Non-combat . | . . . Combat . | . . . Robot Hacks Applied . | . . . Relay Couplers Released . | . . . Fabnet Peak Effective % . | . . . Robots Rewired . | . . . Allies Hacked . | . . . Hacks Repelled . | . . . Allies | -11 -10 -9 -------- Run | Yrd Mat Mat Total Allies . | . . . Largest Group . | . . . Highest-Rated Group . | . . . Highest-Rated Ally . | . . . Total Orders . | . . . Ally Attacks . | . . . Total Damage . | . . . Kills . | . . . Allies Corrupted . | . . . Allies Melted . | . . . Intel | -11 -10 -9 ------- Run | Yrd Mat Mat Robot Analysis Total . | . . . Derelict Logs Recovered . | . . . Drone Launches . | . . . Drone Recoveries . | . . . Exploration | -11 -10 -9 ------------- Run | Yrd Mat Mat Turns Passed 1032 | 76 493 463 Spaces Moved 386 | 46 228 112 Core 18 | 7 . 11 Treads 368 | 39 228 101 Legs . | . . . Wheels . | . . . Hover . | . . . Flight . | . . . Fastest Speed 50 | 50 160 160 Average Speed 165 | 143 160 185 Slowest Speed 450 | 160 160 450 Overloaded Moves . | . . . Propulsion Burnouts . | . . . Robots Hopped . | . . . Cave-ins Triggered . | . . . Exploration Rate (%) 18 | 4 37 14 Regions Visited 2 Branch Regions . Pre-discovered Areas . | . . . Known Exits Taken . | . . . Unknown Exits Taken 2 | 1 1 . Scrap Searched . | . . . Spaces Dug . | . . . Terrain Destroyed . | . . . Melee . | . . . Projectile . | . . . AOE . | . . . Terrain Rammed . | . . . Walls Destroyed . | . . . Machines Disabled . | . . . Actions | -11 -10 -9 --------- Run | Yrd Mat Mat Total 618 | 53 290 275 Wait 94 | . 15 79 Move 384 | 45 227 112 Hop . | . . . Pick Up 10 | 2 6 2 Fast Attach 11 | 6 2 3 Attach 5 | . . 5 Detach . | . . . Swap 5 | . 3 2 Drop 5 | . 2 3 Fire 73 | . 32 41 Melee 26 | . . 26 Ram 2 | . . 2 Kick . | . . . Crush 3 | . 3 . Escape Stasis . | . . . Rewire . | . . . Trap . | . . . Miscellaneous . | . . . Route ------- -11/Scrapyard -10/Materials -9/Materials History --------- Turn | Location | Event 6 | -11/Scrapyard | Discovered new exit (range 15) 77 | -11/Scrapyard | Entered Materials 305 | -10/Materials | Build established: Mutant 406 | -10/Materials | Discovered new exit (range 12) 570 | -10/Materials | Entered another Materials area 570 | -9/Materials | Evolved 2 slots: Propulsion x1, Utility x1 619 | -9/Materials | Repaired Lgt. Treads 646 | -9/Materials | Repaired Lgt. Treads 949 | -9/Materials | Core integrity fell below 50% 963 | -9/Materials | Lost 5 parts (1p2n1u1w) 1019 | -9/Materials | Core integrity fell below 20% 1033 | -9/Materials | Destroyed by Y-45 Defender with Beam Rifle Last Messages --------------- 00948_ G-34 Mercenary destroyed. 00951_ S-10 Pest destroyed. 00961_ Acquired 20 matter. 00978_ G-47 Trooper destroyed. 00996_ Processing Tank disabled. 00998_ K-01 Serf collects debris. 01002_ Mining Claw destroyed. 01005_ Acquired 10 matter. 01005_ Welding Torch destroyed. 01005_ Slammed into Y-45 Defender. 01008_ Field Recycling Unit destroyed. 01009_ Slammed into Y-45 Defender. 01009_ Destabilizing: System corrupted (+1). 01013_ Acquired 10 matter. 01015_ Acquired 2 matter. 01015_ Ion Engine destroyed. 01018_ Acquired 2 matter. 01022_ Y-45 Defender destroyed. 01022_ Switching to secondary target: Y-45 Defender. 01023_ Acquired 2 matter. Map ----- +----------------------------------------------------+ | ???????????????????????????????????????? | | ???????????????????????????????????????? | | ???????????????????????????????????????? | | ???????????????????????????????????????? | | ???????????????????????????????????????? | | ???????????????????????????????????????? | | ???????????????????????????????????????? | | ???????????????????????????????????????? | | ???????????????????????????????????????? | | ???????????????????????????????????????? | | ???????????????????????????????????????? | | ???????????????????????????????????????? | | ???????????? ??????????????? ??????????? | | ?????????????" ####????????? ##????????? | | ?????????????" ####????????? ?????????? | | ?????????????? # ????????? ?????????? | | ?????????????? + ????????? ?????????? | | ?????????????? #% ?? ?????????? | | ?????????????? #/#+#######?? ?????????? | | ?????????????? # ####/##????????? | | ?????????????? # ### #????????? | | ??????????????## = ### #????????? | | ??????????????##"" % % ### [#????????? | | ??????????????##""" ###%* #????????? | | ??????????????##""" ###%==#????????? | | ??????????????##""" =Y@/%= #????????? | | ??????????????##""" ###=* #????????? | | ??????????????## #######????????? | | ????????## #####+##+########???????????? | | ????????## ##### ########???????????? | | ????????## ##???????????? | | ????????#####+## ##???????????? | | ????????# # ##???????????? | | ?????????????? # ##???????????? | | ?????????????? # """ !![##???????????? | | ?????????????? # """ ![[##???????????? | | ?????????????? # """ ![[##???????????? | | ?????????????? # ##??##### ???? | | ??????????????## ##########???? | | ??????????????## ##+######## ???? | | ??????????????### ## ##= ??? | | ??????????????### ## ## """ # | | ???????????????## ## ## """"" # | | ??????????????### ## ## """"" # | | ??????????????### ############ """"" # | | ??????????????## ##### # """ # | | ??????????????## # # | | ??????????????## T T + " " # | | ??????????????## *= # "R" # | | ????????????#### !=%=##### # """ # | +----------------------------------------------------+ Best States ------------- Heat Dissipation 28 Energy Generation 14 Energy Capacity 250 Matter Stores 300 Matter Capacity 300 Sight Range 16 Terrain Scan Density 10 Evasion (%) 40 Recoil Reduction 2 Item Schematics ----------------- None Robot Schematics ------------------ None Fabricated ------------ Nothing Alien Tech Used ----------------- None Achievements -------------- None Challenges ------------ None Game ------ Seed BehemothHackingProtection Manual? 0 Play Time 00:13:02 Cumulative 13.4 hours Start 2024.11.06 @ 18:22:10 End 2024.11.06 @ 18:35:38 Sessions 1 Manual Loads 0 Difficulty Rogue Special Mode None Game No. 12 Rogue 12 Adventurer 0 Explorer 0 Win Type - Total 0 Types 0/0/0/0/0/0/0/0/0 Lore% 8 Gallery% 14 Achievement% 15 Wizard Run 0 Options --------- Layout 0 ASCII 0 Keyboard 0 Movement Mouse Keybinds 0 Fullscreen 2 Font 24/Smallcaps Map View 113x50 Zoom Use 0% Tactical HUD 1 Map Filters NONE Filters NONE Steam 1 RUN: d66b8176-fa5a-426c-9fed-61e7d4dc54fa